fUSD/lending_fUSD_20240619
["ID","MTS","AMOUNT","RATE_DAILY","PERIOD"]
[329871553,1718777448465,-709.76,0.00013698,2]
[329871555,1718777448474,-930.34,0.00013698,2]
[329871557,1718777448484,-1244.31,0.00013698,2]
[329871559,1718777448494,-500.0,0.00013698,2]
[329871561,1718777448504,-500.0,0.00013698,2]
[329871563,1718777448514,-1258.39,0.00013698,2]
[329871565,1718777448523,-367.3567583,0.00013698,2]
[329871567,1718777448532,-500.0,0.00013698,2]
[329871569,1718777448541,-175.51042639,0.00013698,2]
[329871571,1718777448550,-913.2,0.00013698,2]
[329871573,1718777448559,-575.46,0.00013698,2]
[329871575,1718777448568,-500.0,0.00013698,2]
[329871577,1718777448578,-1293.31,0.00013698,2]
[329871579,1718777448587,-916.64,0.00013698,2]
[329871581,1718777448597,-500.0,0.00013698,2]
[329871583,1718777448607,-500.0,0.00013698,2]
[329871585,1718777448616,-500.0,0.00013698,2]
[329871587,1718777448625,-500.0,0.00013698,2]
[329871589,1718777448634,-607.10878813,0.00013698,2]
[329871591,1718777448644,-500.0,0.00013698,2]
[329871593,1718777448653,-1770.3,0.00013698,2]
[329871595,1718777448662,-500.0,0.00013698,2]
[329871597,1718777448671,-500.0,0.00013698,2]
[329871599,1718777448683,-500.0,0.00013698,2]
[329871601,1718777448692,-1445.43,0.00013698,2]
[329871603,1718777448701,-1495.7,0.00013698,2]
[329871605,1718777448710,-500.0,0.00013698,2]
[329871607,1718777448720,-2258.62,0.00013698,2]
[329871609,1718777448730,-500.0,0.00013698,2]
[329871611,1718777448739,-847.98,0.00013698,2]
[329871613,1718777448748,-500.0,0.00013698,2]
[329871615,1718777448758,-500.0,0.00013698,2]
[329871617,1718777448767,-500.0,0.00013698,2]
[329871619,1718777448776,-1153.38,0.00013698,2]
[329871621,1718777448786,-2092.01,0.00013698,2]
[329871623,1718777448795,-500.0,0.00013698,2]
[329871625,1718777448804,-1797.72,0.00013698,2]
[329871627,1718777448814,-500.0,0.00013698,2]
[329871629,1718777448823,-224.31527791,0.00013698,2]
[329871631,1718777448833,-500.0,0.00013698,2]
[329871633,1718777448842,-500.0,0.00013698,2]
[329871635,1718777448852,-500.0,0.00013698,2]
[329871637,1718777448863,-500.0,0.00013698,2]
[329871639,1718777448873,-500.0,0.00013698,2]
[329871641,1718777448883,-1436.9,0.00013698,2]
[329871643,1718777448893,-500.0,0.00013698,2]
[329871645,1718777448903,-1316.55,0.00013698,2]
[329871647,1718777448912,-1851.94,0.00013698,2]
[329871649,1718777448922,-2163.34,0.00013698,2]
[329871651,1718777448933,-500.0,0.00013698,2]
[329871653,1718777448942,-1359.54,0.00013698,2]
[329871655,1718777448951,-547.37,0.00013698,2]
[329871657,1718777448960,-500.0,0.00013698,2]
[329871659,1718777448969,-619.77,0.00013698,2]
[329871661,1718777448979,-500.0,0.00013698,2]
[329871663,1718777448989,-500.0,0.00013698,2]
[329871665,1718777448998,-1704.23,0.00013698,2]
[329871667,1718777449007,-1505.12,0.00013698,2]
[329871669,1718777449016,-500.0,0.00013698,2]
[329871671,1718777449026,-765.16,0.00013698,2]
[329871673,1718777449035,-752.49,0.00013698,2]
[329871675,1718777449044,-500.0,0.00013698,2]
[329871677,1718777449054,-1723.88,0.00013698,2]
[329871679,1718777449064,-500.0,0.00013698,2]
[329871681,1718777449073,-4231.93,0.00013698,2]
[329871683,1718777449083,-500.0,0.00013698,2]
[329871685,1718777449092,-507.11,0.00013698,2]
[329871688,1718777449104,-1304.82,0.00013698,2]
[329871690,1718777449114,-500.0,0.00013698,2]
[329871692,1718777449123,-500.0,0.00013698,2]
[329871693,1718777449132,-1300.45,0.00013698,2]
[329871695,1718777449142,-500.0,0.00013698,2]
[329871697,1718777449151,-843.49,0.00013698,2]
[329871699,1718777449160,-500.0,0.00013698,2]
[329871701,1718777449170,-500.0,0.00013698,2]
[329871703,1718777449181,-500.0,0.00013698,2]
[329871705,1718777449190,-500.0,0.00013698,2]
[329871707,1718777449200,-837.19,0.00013698,2]
[329871709,1718777449209,-2038.47,0.00013698,2]
[329871711,1718777449219,-2480.49,0.00013698,2]
[329871713,1718777449228,-500.0,0.00013698,2]
[329871716,1718777449238,-500.0,0.00013698,2]
[329871718,1718777449247,-1647.01,0.00013698,2]
[329871719,1718777449257,-500.0,0.00013698,2]
[329871722,1718777449267,-500.0,0.00013698,2]
[329871724,1718777449276,-886.26,0.00013698,2]
[329871725,1718777449285,-2244.17,0.00013698,2]
[329871728,1718777449295,-2605.37,0.00013698,2]
[329871729,1718777449305,-1690.64,0.00013698,2]
[329871731,1718777449315,-1104.95,0.00013698,2]
[329871733,1718777449324,-500.0,0.00013698,2]
[329871735,1718777449333,-500.0,0.00013698,2]
[329871736,1718777449343,-821.71,0.00013698,2]
[329871737,1718777449352,-716.51,0.00013698,2]
[329871738,1718777449361,-500.0,0.00013698,2]
[329871739,1718777449373,-1389.85,0.00013698,2]
[329871740,1718777449382,-500.0,0.00013698,2]
[329871741,1718777449391,-1146.26,0.00013698,2]
[329871742,1718777449400,-500.0,0.00013698,2]
[329871743,1718777449414,-1813.7,0.00013698,2]
[329871744,1718777449422,-500.0,0.00013698,2]
[329871746,1718777449435,-500.0,0.00013698,2]
[329871748,1718777449444,-500.0,0.00013698,2]
[329871750,1718777449455,-500.0,0.00013698,2]
[329871752,1718777449464,-2252.19,0.00013698,2]
[329871754,1718777449473,-1376.11,0.00013698,2]
[329871756,1718777449483,-500.0,0.00013698,2]
[329871758,1718777449493,-500.0,0.00013698,2]
[329871760,1718777449503,-39667.61,0.00013698,2]
[329871762,1718777449513,-4337.59,0.00013698,2]
[329871764,1718777449522,-571.17,0.00013698,2]
[329871765,1718777449532,-500.0,0.00013698,2]
[329871767,1718777449541,-500.0,0.00013698,2]
[329871768,1718777449550,-596.19,0.00013698,2]
[329871770,1718777449559,-7623.81,0.00013698,2]
[329871772,1718777449569,-1066.46,0.00013698,2]
[329871774,1718777449579,-3408.9,0.00013698,2]
[329871776,1718777449588,-858.69,0.00013698,2]
[329871778,1718777449598,-500.0,0.00013698,2]
[329871780,1718777449608,-1318.65,0.00013698,2]
[329871782,1718777449617,-500.0,0.00013698,2]
[329871784,1718777449628,-971.96,0.00013698,2]
[329871786,1718777449638,-5108.97,0.00013698,2]
[329871788,1718777449648,-1015.69,0.00013698,2]
[329871790,1718777449658,-500.0,0.00013698,2]
[329871792,1718777449667,-2044.94,0.00013698,2]
[329871794,1718777449679,-500.0,0.00013698,2]
[329871796,1718777449688,-593.87197428,0.00013698,2]
[329871798,1718777449697,-500.0,0.00013698,2]
[329871800,1718777449707,-500.0,0.00013698,2]
[329871802,1718777449717,-500.0,0.00013698,2]
[329871804,1718777449726,-500.0,0.00013698,2]
[329871805,1718777449735,-500.0,0.00013698,2]
[329871807,1718777449745,-3432.09,0.00013698,2]
[329871809,1718777449755,-3625.07,0.00013698,2]
[329871811,1718777449764,-1002.66,0.00013698,2]
[329871813,1718777449774,-500.0,0.00013698,2]
[329871815,1718777449784,-500.0,0.00013698,2]
[329871817,1718777449794,-1819.87,0.00013698,2]
[329871819,1718777449803,-789.43,0.00013698,2]
[329871821,1718777449812,-550.34,0.00013698,2]
[329871823,1718777449822,-500.0,0.00013698,2]
[329871825,1718777449832,-500.0,0.00013698,2]
[329871827,1718777449842,-500.0,0.00013698,2]
[329871829,1718777449851,-3177.21,0.00013698,2]
[329871831,1718777449860,-500.0,0.00013698,2]
[329871833,1718777449870,-2906.56,0.00013698,2]
[329871835,1718777449879,-1401.14,0.00013698,2]
[329871837,1718777449889,-2199.43,0.00013698,2]
[329871839,1718777449898,-500.0,0.00013698,2]
[329871841,1718777449908,-799.72,0.00013698,2]
[329871843,1718777449918,-11983.54,0.00013698,2]
[329871845,1718777449929,-2989.5,0.00013698,2]
[329871847,1718777449938,-500.0,0.00013698,2]
[329871849,1718777449947,-1052.24,0.00013698,2]
[329871850,1718777449956,-500.0,0.00013698,2]
[329871852,1718777449968,-4536.97,0.00013698,2]
[329871854,1718777449978,-500.0,0.00013698,2]
[329871856,1718777449987,-3724.41,0.00013698,2]
[329871859,1718777449997,-4159.14,0.00013698,2]
[329871860,1718777450007,-19224.8,0.00013698,2]
[329871862,1718777450017,-500.0,0.00013698,2]
[329871864,1718777450026,-2672.71,0.00013698,2]
[329871867,1718777450036,-913.76,0.00013698,2]
[329871868,1718777450046,-500.0,0.00013698,2]
[329871870,1718777450055,-1838.5,0.00013698,2]
[329871872,1718777450064,-1532.61,0.00013698,2]
[329871874,1718777450074,-500.0,0.00013698,2]
[329871876,1718777450083,-1450.97,0.00013698,2]
[329871878,1718777450093,-500.0,0.00013698,2]
[329871880,1718777450102,-500.0,0.00013698,2]
[329871881,1718777450112,-1238.24,0.00013698,2]
[329871883,1718777450122,-500.0,0.00013698,2]
[329871884,1718777450131,-500.0,0.00013698,2]
[329871885,1718777450141,-1986.51,0.00013698,2]
[329871886,1718777450150,-675.22,0.00013698,2]
[329871887,1718777450160,-1175.93,0.00013698,2]
[329871888,1718777450169,-16563.87,0.00013698,2]
[329871889,1718777450178,-1586.55,0.00013698,2]
[329871890,1718777450187,-500.0,0.00013698,2]
[329871891,1718777450196,-1110.41,0.00013698,2]
[329871892,1718777450206,-888.94,0.00013698,2]
[329871893,1718777450216,-922.5,0.00013698,2]
[329871894,1718777450225,-156.59627409,0.00013698,2]
[329871895,1718777450235,-947.57,0.00013698,2]
[329871896,1718777450244,-503.30993919,0.00013698,2]
[329871897,1718777450253,-38486.61,0.00013698,2]
[329871898,1718777450262,-726.25,0.00013698,2]
[329871899,1718777450271,-29775.73,0.00013698,2]
[329871900,1718777450281,-768.6,0.00013698,2]
[329871901,1718777450290,-1049.82,0.00013698,2]
[329871902,1718777450300,-758.87,0.00013698,2]
[329871903,1718777450309,-500.0,0.00013698,2]
[329871904,1718777450319,-2299.12,0.00013698,2]
[329871905,1718777450328,-1865.01,0.00013698,2]
[329871906,1718777450338,-1130.39,0.00013698,2]
[329871907,1718777450347,-500.0,0.00013698,2]
[329871908,1718777450356,-500.0,0.00013698,2]
[329871909,1718777450366,-500.0,0.00013698,2]
[329871910,1718777450375,-1392.46,0.00013698,2]
[329871911,1718777450385,-500.0,0.00013698,2]
[329871912,1718777450394,-500.0,0.00013698,2]
[329871913,1718777450409,-1572.35,0.00013698,2]
[329871914,1718777450419,-1827.14,0.00013698,2]
[329871915,1718777450430,-500.0,0.00013698,2]
[329871916,1718777450439,-500.0,0.00013698,2]
[329871917,1718777450450,-500.0,0.00013698,2]
[329871918,1718777450459,-8242.25,0.00013698,2]
[329871919,1718777450468,-1017.09,0.00013698,2]
[329871920,1718777450477,-500.0,0.00013698,2]
[329871921,1718777450489,-742.15,0.00013698,2]
[329871922,1718777450499,-681.2,0.00013698,2]
[329871923,1718777450509,-500.0,0.00013698,2]
[329871924,1718777450518,-780.9,0.00013698,2]
[329871925,1718777450528,-500.0,0.00013698,2]
[329871926,1718777450537,-500.0,0.00013698,2]
[329871927,1718777450546,-500.0,0.00013698,2]
[329871928,1718777450555,-902.93,0.00013698,2]
[329871929,1718777450565,-917.49,0.00013698,2]
[329871930,1718777450574,-1650.13,0.00013698,2]
[329871931,1718777450584,-589.61,0.00013698,2]
[329871932,1718777450594,-2246.97,0.00013698,2]
[329871933,1718777450604,-500.0,0.00013698,2]
[329871934,1718777450613,-4065.65,0.00013698,2]
[329871935,1718777450623,-2010.29,0.00013698,2]
[329871936,1718777450633,-14719.83,0.00013698,2]
[329871937,1718777450642,-500.0,0.00013698,2]
[329871938,1718777450652,-1333.80592822,0.00013698,2]
[329871939,1718777450678,-2310.4004753,0.00013698,2]
[329871940,1718777450689,-1881.315,0.00013698,2]
[329871941,1718777450701,-977.00774141,0.00013698,2]
[329871942,1718777450712,-761.09692535,0.00013698,2]
[329871943,1718777450724,-500.0,0.00013698,2]
[329871944,1718777450802,-880.36175698,0.00013698,2]
[329871945,1718777450813,-512.37936548,0.00013698,2]
[329871946,1718777452621,-454.94787479,0.00012189,2]
[329871947,1718777452631,-705.3369175,0.00013698,2]
[329871948,1718777452676,-500.0,0.00013698,2]
[329871949,1718777528145,500.0,0.00024,30]
[329871950,1718777528816,500.0,0.00024,30]
[329871951,1718777529417,500.0,0.00024,30]
[329871952,1718777529909,500.0,0.00024,30]
[329871953,1718777530465,500.0,0.00024,30]
[329871954,1718777531022,500.0,0.00024,30]
[329871955,1718777531564,500.0,0.00024,30]
[329871956,1718777532152,500.0,0.00024,30]
[329871957,1718777532653,500.0,0.00024,30]
[329871958,1718777533205,500.0,0.00024,30]
[329871959,1718777534410,500.0,0.00024,30]
[329871960,1718777534999,500.0,0.00024,30]
[329871961,1718777535430,500.0,0.00024,30]
[329871962,1718777535924,500.0,0.00024,30]
[329871963,1718777536427,500.0,0.00024,30]
[329871964,1718777537349,500.0,0.00024,30]
[329871965,1718777538554,500.0,0.00024,30]
[329871966,1718777538713,508.0,0.00024,30]
[329871968,1718777668050,151.0,0.00020887,30]
[329871970,1718777966814,-155.0,0.00010515,2]
[329871971,1718777966838,-9845.0,0.00010516,2]
[329871972,1718777968102,-686.5019354,0.00010516,2]
[329871973,1718777968126,-339.26501346,0.00010517,2]
[329871974,1718777968151,-7554.15162731,0.00010517,2]
[329871975,1718777968173,-1420.08142383,0.00010518,2]
[329871976,1718777968593,-6884.17878854,0.00010518,2]
[329871977,1718777968616,-1172.985941,0.00010564,2]
[329871978,1718777968642,-538.59625082,0.00010616,2]
[329871979,1718777968668,-201.96115343,0.00010616,2]
[329871980,1718777968692,-156.7676,0.00010836,2]
[329871981,1718777968715,-671.24,0.00010959,2]
[329871982,1718777968739,-374.27026621,0.00011036,2]
[329871983,1718777969977,-368.19973379,0.00011036,2]
[329871984,1718777969999,-5584.17,0.00011385,2]
[329871985,1718777970020,-894.3,0.00011385,2]
[329871986,1718777970044,-3153.33026621,0.00011457,2]
[329871987,1718777982512,-153.39973379,0.00011457,2]
[329871988,1718778016241,-170.76,0.00011479,2]
[329871989,1718778016262,-207.51,0.00011564,2]
[329871990,1718778016286,-150.99,0.00011564,2]
[329871991,1718778016308,-250.0,0.00011568,2]
[329871992,1718778016332,-200.0,0.00011763,2]
[329871993,1718778016354,-250.0,0.00011833,2]
[329871994,1718778016376,-1304.75816031,0.00012059,2]
[329871995,1718778016400,-156.47518064,0.00012189,2]
[329871996,1718778016424,-1000.0,0.0001256,2]
[329871997,1718778016447,-257.68378586,0.00012567,2]
[329871998,1718778016469,-300.0,0.00012595,2]
[329871999,1718778019450,961.05,0.00010327,2]
[329872000,1718778019788,961.05,0.00012591,2]
[329872001,1718778066260,-10000.0,0.00011457,2]
[329872002,1718778066913,-10000.0,0.00011457,2]
[329872003,1718778084735,-625.61991227,0.00011457,2]
[329872004,1718778084759,-300.07819299,0.00011457,2]
[329872005,1718778084780,-411.1717739,0.00011457,2]
[329872006,1718778085258,173.41,9.793e-05,2]
[329872007,1718778095528,4765.59309933,0.00011457,2]
[329872008,1718778097184,300.07819299,0.00011457,2]
[329872009,1718778097909,411.1717739,0.00011457,2]
[329872010,1718778100435,20000.0,0.00011457,2]
[329872011,1718778109801,176.38,9.797e-05,2]
[329872012,1718778113179,227.03368739,0.00011457,2]
[329872013,1718778113910,411.1717739,0.00011457,2]
[329872014,1718778115492,4763.75016863,0.00011457,2]
[329872015,1718778134671,393.72358265,0.00011457,2]
[329872016,1718778146251,441.24937204,0.00011457,2]
[329872017,1718778420280,40000.0,0.00011457,2]
[329872018,1718778421131,-523.30694462,0.00011508,2]
[329872019,1718778421156,-1079.54456918,0.00011509,2]
[329872020,1718778421177,-449.77064763,0.00011549,2]
[329872021,1718778421199,-7947.37783857,0.0001155,2]
[329872022,1718778422638,-485.1979654,0.0001155,2]
[329872023,1718778422659,-3600.298183,0.00011551,2]
[329872024,1718778422681,-1627.22993982,0.00011609,2]
[329872025,1718778422705,-1000.0,0.00011676,2]
[329872026,1718778422731,-3287.27391178,0.00011709,2]
[329872027,1718778424114,-150.0,0.00011549,2]
[329872028,1718778424138,-9850.0,0.00011709,2]
[329872029,1718778438281,10000.0,0.00011457,2]
[329872030,1718778461111,-529.41988133,0.00011708,2]
[329872031,1718778461134,-6668.87608822,0.00011709,2]
[329872033,1718778479755,101.70403045,0.00011702,2]
[329872034,1718778480283,7371.28564844,0.00011457,2]
[329872035,1718778499593,-2102.44596955,0.00011702,2]
[329872036,1718778499615,-250.0,0.00011702,2]
[329872037,1718778499636,-321.53,0.00012237,2]
[329872038,1718778499658,-150.0,0.00012252,2]
[329872039,1718778499680,-3647.25,0.00012361,2]
[329872040,1718778499704,-460.83,0.00012412,2]
[329872041,1718778499726,-460.83,0.00012446,2]
[329872042,1718778499751,-460.83,0.0001248,2]
[329872043,1718778499774,-460.83,0.00012514,2]
[329872044,1718778499795,-460.83,0.00012548,2]
[329872045,1718778499820,-460.83,0.00012582,2]
[329872046,1718778499844,-169.3852174,0.00012582,2]
[329872047,1718778499869,-300.0,0.00012586,2]
[329872048,1718778499892,-294.40881305,0.00012587,2]
[329872049,1718778501151,-328.25685621,0.00012582,2]
[329872050,1718778501173,-5993.92455125,0.00012587,2]
[329872053,1718778522356,348.35621855,0.00012587,2]
[329872056,1718778524226,3329.46237399,0.00012595,2]
[329872057,1718778524249,5103.11342998,0.00012595,2]
[329872058,1718778526644,-3060.6621,0.00012596,2]
[329872059,1718778526666,-3471.3594,0.00012596,2]
[329872060,1718778526688,-3467.9785,0.00012596,2]
[329872061,1718778527862,-6148.6881,0.00012596,2]
[329872062,1718778527886,-3851.3119,0.00012596,2]
[329872063,1718778528058,217.74435107,0.00012595,2]
[329872064,1718778529049,4451.58833217,0.00012595,2]
[329872065,1718778529152,-10000.0,0.00012596,2]
[329872066,1718778529254,227.55388678,0.00012587,2]
[329872067,1718778531151,-869.58489938,0.00012587,2]
[329872068,1718778531175,-9130.41510062,0.00012596,2]
[329872070,1718778625517,-689.75981342,0.0001258,2]
[329872071,1718778625543,-238.31120085,0.0001258,2]
[329872072,1718778625569,-537.00312061,0.00012581,2]
[329872073,1718778625594,-155.0,0.00012582,2]
[329872074,1718778625618,-150.0,0.00012582,2]
[329872075,1718778625643,-328.25685621,0.00012582,2]
[329872076,1718778625669,-9233.78477201,0.00012583,2]
[329872077,1718778625693,-1069.16736743,0.00012583,2]
[329872078,1718778625718,-206.29106117,0.00012583,2]
[329872079,1718778632301,-1000.0,0.00012585,2]
[329872081,1718778632311,-943.46654364,0.00012586,2]
[329872083,1718778632322,-348.02276875,0.00012587,2]
[329872084,1718778632333,-2378.74159938,0.00012596,2]
[329872086,1718778632345,-182.05662154,0.00012596,2]
[329872088,1718778632358,-49150.99012931,0.00012596,2]
[329872103,1718778632541,-1353.88104019,0.00012596,2]
[329872104,1718778632552,-758.46063196,0.00012596,2]
[329872105,1718778632563,-328.64556,0.00012596,2]
[329872106,1718778632574,-985.42,0.00012596,2]
[329872107,1718778632586,-1671.32115809,0.00012596,2]
[329872108,1718778632598,-14941.00654182,0.00012596,2]
[329872109,1718778632607,-155.0,0.00012596,2]
[329872110,1718778632617,-150.6212756,0.00012596,2]
[329872111,1718778632626,-460.83,0.00012616,2]
[329872112,1718778632635,-460.83,0.0001265,2]
[329872113,1718778632644,-1625.50187019,0.00012679,2]
[329872114,1718778632654,-452.85358272,0.00012679,2]
[329872115,1718778632663,-530.36070692,0.00012679,2]
[329872116,1718778632672,-339.37755264,0.00012679,2]
[329872117,1718778632682,-2373.53052738,0.00012679,2]
[329872118,1718778632691,-3726.09628974,0.00012679,2]
[329872119,1718778632701,-218.08489362,0.00012679,2]
[329872120,1718778632711,-460.90794393,0.00012679,2]
[329872121,1718778632721,-539.81918449,0.0001268,2]
[329872122,1718778632731,-8424.09924965,0.0001268,2]
[329872123,1718778632740,-40117.04738451,0.00012681,2]
[329872133,1718778633085,-873.0,0.00012681,2]
[329872134,1718778633096,-500.0,0.00012681,2]
[329872135,1718778633108,-8620.43,0.00012681,2]
[329872136,1718778638209,-2799.3000199,0.00012681,2]
[329872137,1718778638494,-20413.25589937,0.00012681,2]
[329872138,1718778638508,-8208.53520196,0.00012681,2]
[329872139,1718778638519,-39730.59015485,0.00012681,2]
[329872140,1718778638531,-3799.123425,0.00012681,2]
[329872141,1718778638543,-14778.235088,0.00012681,2]
[329872142,1718778639194,-1107.98065498,0.00012681,2]
[329872146,1718778639207,-2412.26395544,0.00012681,2]
[329872148,1718778639220,-815.23057093,0.00012681,2]
[329872150,1718778639232,-1924.09839103,0.00012681,2]
[329872152,1718778639244,-2951.13646444,0.00012681,2]
[329872154,1718778639258,-1251.33807564,0.00012681,2]
[329872155,1718778639270,-4677.9289797,0.00012681,2]
[329872183,1718778644066,-917.42870525,0.0001268,2]
[329872185,1718778644874,-487.57578029,0.0001268,2]
[329872186,1718778644883,-352.38766326,0.0001268,2]
[329872187,1718778644893,-1375.32172549,0.00012681,2]
[329872188,1718778644905,-310397.79512481,0.00012681,2]
[329872189,1718778644914,-4627.5355795,0.00012682,2]
[329872190,1718778644923,-150.99,0.00012682,2]
[329872191,1718778644932,-460.83,0.00012684,2]
[329872192,1718778644942,-155.41724428,0.00012694,2]
[329872193,1718778644952,-1406.90313427,0.00012694,2]
[329872194,1718778644961,-2386.00563136,0.00012694,2]
[329872195,1718778644972,-2821.19405743,0.00012694,2]
[329872196,1718778644982,-276.19488064,0.00012694,2]
[329872197,1718778644991,-155.39701641,0.00012694,2]
[329872198,1718778645001,-215.95453193,0.00012694,2]
[329872199,1718778645012,-1000.0,0.00012694,2]
[329872200,1718778645021,-194.02066443,0.00012694,2]
[329872201,1718778645031,-350.33069042,0.00012694,2]
[329872202,1718778645040,-157.99223805,0.00012694,2]
[329872203,1718778645049,-180.7446027,0.00012694,2]
[329872204,1718778645060,-1000.0,0.00012694,2]
[329872205,1718778645069,-2417.64410478,0.00012694,2]
[329872206,1718778645079,-244.4948077,0.00012694,2]
[329872207,1718778645090,-206.44355968,0.00012694,2]
[329872208,1718778645101,-627.68682444,0.00012694,2]
[329872209,1718778645111,-367.48475848,0.00012694,2]
[329872210,1718778645121,-604.95811385,0.00012694,2]
[329872211,1718778645131,-524.4208755,0.00012694,2]
[329872212,1718778645142,-249.71897767,0.00012694,2]
[329872213,1718778645152,-156.62934003,0.00012694,2]
[329872214,1718778645162,-157.90766918,0.00012694,2]
[329872215,1718778645172,-2338.76123193,0.00012694,2]
[329872216,1718778645183,-155.10494405,0.00012694,2]
[329872217,1718778645194,-181.71324199,0.00012694,2]
[329872218,1718778645203,-190.04026861,0.00012694,2]
[329872219,1718778645213,-210.50927714,0.00012694,2]
[329872220,1718778645223,-156.13216218,0.00012694,2]
[329872221,1718778645233,-970.58935417,0.00012694,2]
[329872222,1718778645245,-156.7012365,0.00012694,2]
[329872223,1718778645256,-2144.48033818,0.00012694,2]
[329872224,1718778645267,-250.35916501,0.00012694,2]
[329872225,1718778645278,-436.05693133,0.00012694,2]
[329872226,1718778645288,-202.17182997,0.00012694,2]
[329872227,1718778645298,-631.94817981,0.00012694,2]
[329872228,1718778645307,-338.17037854,0.00012694,2]
[329872229,1718778645319,-1930.10625603,0.00012694,2]
[329872230,1718778645329,-2103.17604793,0.00012694,2]
[329872231,1718778645341,-410.06375172,0.00012694,2]
[329872232,1718778645350,-787.27907737,0.00012694,2]
[329872233,1718778645362,-155.0,0.00012694,2]
[329872234,1718778645372,-155.0,0.00012694,2]
[329872235,1718778645381,-155.0,0.00012694,2]
[329872236,1718778645390,-10310.79487693,0.00012695,2]
[329872237,1718778645400,-786.8,0.00012695,2]
[329872238,1718778645409,-786.8,0.00012695,2]
[329872239,1718778645419,-786.8,0.00012695,2]
[329872240,1718778645428,-786.8,0.00012695,2]
[329872241,1718778645437,-786.8,0.00012695,2]
[329872242,1718778645446,-786.8,0.00012695,2]
[329872243,1718778645455,-786.8,0.00012695,2]
[329872244,1718778645464,-786.8,0.00012695,2]
[329872245,1718778645473,-786.8,0.00012695,2]
[329872246,1718778645482,-786.8,0.00012695,2]
[329872247,1718778645491,-786.8,0.00012695,2]
[329872248,1718778645501,-786.8,0.00012695,2]
[329872249,1718778645510,-786.8,0.00012695,2]
[329872250,1718778645519,-786.8,0.00012695,2]
[329872251,1718778645528,-786.8,0.00012695,2]
[329872252,1718778645537,-786.8,0.00012695,2]
[329872253,1718778645546,-786.8,0.00012695,2]
[329872254,1718778645556,-786.8,0.00012695,2]
[329872255,1718778645565,-786.8,0.00012695,2]
[329872256,1718778645574,-786.8,0.00012695,2]
[329872257,1718778645583,-786.8,0.00012695,2]
[329872258,1718778645592,-786.8,0.00012695,2]
[329872259,1718778645602,-786.8,0.00012695,2]
[329872260,1718778645611,-786.84338652,0.00012695,2]
[329872261,1718778645620,-142278.77056827,0.00012696,2]
[329872262,1718778645632,-1079.31918,0.00012696,2]
[329872263,1718778645643,-35370.04434617,0.00012696,2]
[329872264,1718778645654,-340.58572083,0.00012696,2]
[329872265,1718778645665,-3003.26429407,0.00012696,2]
[329872266,1718778645676,-62928.01589066,0.00012696,2]
[329872267,1718778645686,-4160.55464877,0.00012697,2]
[329872268,1718778645695,-460.83,0.00012718,2]
[329872269,1718778645706,-499.99,0.0001274,2]
[329872270,1718778645715,-9999.99,0.0001274,2]
[329872271,1718778645725,-460.83,0.00012752,2]
[329872272,1718778645734,-460.83,0.00012786,2]
[329872273,1718778645743,-756.5420071,0.00012799,2]
[329872274,1718778645752,-756.54200709,0.00012799,2]
[329872275,1718778645764,-460.83,0.0001282,2]
[329872276,1718778645773,-169.38521738,0.00012836,2]
[329872277,1718778645784,-460.83,0.00012854,2]
[329872278,1718778645796,-460.83,0.00012888,2]
[329872279,1718778645807,-162.53122664,0.000129,2]
[329872280,1718778645817,-460.83,0.00012922,2]